fUSD/lending_fUSD_20250618
["ID","MTS","AMOUNT","RATE_DAILY","PERIOD"]
[366384206,1750223466881,-309.26,0.00016767,2]
[366384207,1750223466891,-151.0,0.00016767,2]
[366384208,1750223466901,-936.17,0.00016767,2]
[366384209,1750223466910,-1002.15,0.00016767,2]
[366384210,1750223466920,-490.0,0.00016767,2]
[366384211,1750223466930,-787.56665,0.00016767,2]
[366384212,1750223466940,-490.0,0.00016767,2]
[366384213,1750223466950,-490.0,0.00016767,2]
[366384214,1750223466960,-490.0,0.00016767,2]
[366384215,1750223466969,-490.0,0.00016767,2]
[366384216,1750223466979,-490.0,0.00016767,2]
[366384217,1750223466988,-858.39,0.00016767,2]
[366384218,1750223466998,-490.0,0.00016767,2]
[366384219,1750223467007,-490.0,0.00016767,2]
[366384220,1750223467017,-502.81,0.00016767,2]
[366384221,1750223467026,-490.0,0.00016767,2]
[366384222,1750223467036,-490.0,0.00016767,2]
[366384223,1750223467045,-490.0,0.00016767,2]
[366384224,1750223467055,-490.0,0.00016767,2]
[366384225,1750223467067,-692.41,0.00016767,2]
[366384226,1750223467076,-490.0,0.00016767,2]
[366384227,1750223467086,-490.0,0.00016767,2]
[366384228,1750223467096,-490.0,0.00016767,2]
[366384229,1750223467105,-490.0,0.00016767,2]
[366384230,1750223467115,-300.0,0.00016767,2]
[366384231,1750223467124,-490.0,0.00016767,2]
[366384232,1750223467134,-1104.73,0.00016767,2]
[366384233,1750223467143,-559.22,0.00016767,2]
[366384234,1750223467153,-490.0,0.00016767,2]
[366384235,1750223467163,-490.0,0.00016767,2]
[366384236,1750223467172,-490.0,0.00016767,2]
[366384237,1750223467182,-490.0,0.00016767,2]
[366384238,1750223467192,-1031.23,0.00016767,2]
[366384239,1750223467201,-740.11,0.00016767,2]
[366384240,1750223467211,-490.0,0.00016767,2]
[366384241,1750223467220,-490.0,0.00016767,2]
[366384242,1750223467229,-1025.47,0.00016767,2]
[366384243,1750223467239,-490.0,0.00016767,2]
[366384244,1750223467248,-578.04,0.00016767,2]
[366384245,1750223467258,-996.23,0.00016767,2]
[366384246,1750223467268,-548.96,0.00016767,2]
[366384247,1750223467277,-1585.39,0.00016767,2]
[366384248,1750223467287,-490.0,0.00016767,2]
[366384249,1750223467297,-1147.41,0.00016767,2]
[366384250,1750223467306,-909.31,0.00016767,2]
[366384251,1750223467316,-1175.41,0.00016767,2]
[366384252,1750223467326,-490.0,0.00016767,2]
[366384253,1750223467336,-532.1,0.00016767,2]
[366384254,1750223467346,-490.0,0.00016767,2]
[366384255,1750223467355,-769.46,0.00016767,2]
[366384256,1750223467365,-490.0,0.00016767,2]
[366384257,1750223467375,-408.63394577,0.00016767,2]
[366384258,1750223467384,-691.2,0.00016767,2]
[366384259,1750223467394,-622.91,0.00016767,2]
[366384260,1750223467403,-490.0,0.00016767,2]
[366384261,1750223467412,-490.0,0.00016767,2]
[366384262,1750223467422,-490.0,0.00016767,2]
[366384263,1750223467431,-1460.18,0.00016767,2]
[366384264,1750223467441,-490.0,0.00016767,2]
[366384265,1750223467450,-490.0,0.00016767,2]
[366384266,1750223467460,-864.39,0.00016767,2]
[366384267,1750223467470,-490.0,0.00016767,2]
[366384268,1750223467479,-490.0,0.00016767,2]
[366384269,1750223467489,-490.0,0.00016767,2]
[366384270,1750223467499,-627.82,0.00016767,2]
[366384271,1750223467509,-490.0,0.00016767,2]
[366384272,1750223467518,-490.0,0.00016767,2]
[366384273,1750223467528,-1152.07,0.00016767,2]
[366384274,1750223467537,-624.22,0.00016767,2]
[366384275,1750223467547,-490.0,0.00016767,2]
[366384276,1750223467556,-674.57,0.00016767,2]
[366384277,1750223467566,-490.0,0.00016767,2]
[366384278,1750223467576,-651.58,0.00016767,2]
[366384279,1750223467586,-490.0,0.00016767,2]
[366384280,1750223467596,-490.0,0.00016767,2]
[366384281,1750223467607,-871.35,0.00016767,2]
[366384282,1750223467617,-1001.71,0.00016767,2]
[366384283,1750223467627,-1338.83,0.00016767,2]
[366384284,1750223467636,-490.0,0.00016767,2]
[366384285,1750223467646,-185.76293685,0.00016767,2]
[366384286,1750223467657,-574.5,0.00016767,2]
[366384287,1750223467666,-490.0,0.00016767,2]
[366384288,1750223467676,-770.3,0.00016767,2]
[366384289,1750223467686,-490.0,0.00016767,2]
[366384290,1750223467696,-804.0,0.00016767,2]
[366384291,1750223467708,-563.86,0.00016767,2]
[366384292,1750223467718,-490.0,0.00016767,2]
[366384293,1750223467727,-490.0,0.00016767,2]
[366384294,1750223467737,-490.0,0.00016767,2]
[366384295,1750223467747,-262.99744907,0.00016767,2]
[366384296,1750223467757,-490.0,0.00016767,2]
[366384297,1750223467767,-1245.2,0.00016767,2]
[366384298,1750223467778,-490.0,0.00016767,2]
[366384299,1750223467788,-532.57,0.00016767,2]
[366384300,1750223467799,-1096.78,0.00016767,2]
[366384301,1750223467811,-490.0,0.00016767,2]
[366384302,1750223467821,-647.57,0.00016767,2]
[366384303,1750223467831,-490.0,0.00016767,2]
[366384304,1750223467841,-819.31,0.00016767,2]
[366384305,1750223467850,-490.0,0.00016767,2]
[366384306,1750223467860,-490.0,0.00016767,2]
[366384307,1750223467869,-490.0,0.00016767,2]
[366384308,1750223467879,-490.0,0.00016767,2]
[366384309,1750223467888,-490.0,0.00016767,2]
[366384310,1750223467898,-1077.49,0.00016767,2]
[366384311,1750223467917,-1713.1,0.00016767,2]
[366384312,1750223467928,-490.0,0.00016767,2]
[366384313,1750223467939,-490.0,0.00016767,2]
[366384314,1750223467949,-500.84055804,0.00016767,2]
[366384315,1750223467959,-520.52,0.00016767,2]
[366384316,1750223467969,-667.34,0.00016767,2]
[366384317,1750223467979,-454.8105435,0.00016767,2]
[366384318,1750223467989,-490.0,0.00016767,2]
[366384319,1750223467999,-490.0,0.00016767,2]
[366384320,1750223468010,-490.0,0.00016767,2]
[366384321,1750223468020,-490.0,0.00016767,2]
[366384322,1750223468030,-1163.46,0.00016767,2]
[366384323,1750223468040,-490.0,0.00016767,2]
[366384324,1750223468050,-651.07,0.00016767,2]
[366384325,1750223468060,-1139.82,0.00016767,2]
[366384326,1750223468070,-490.0,0.00016767,2]
[366384327,1750223468080,-490.0,0.00016767,2]
[366384328,1750223468090,-1041.5,0.00016767,2]
[366384329,1750223468100,-490.0,0.00016767,2]
[366384330,1750223468111,-490.0,0.00016767,2]
[366384331,1750223468122,-490.0,0.00016767,2]
[366384332,1750223468132,-490.0,0.00016767,2]
[366384333,1750223468141,-593.28,0.00016767,2]
[366384334,1750223468151,-490.0,0.00016767,2]
[366384335,1750223468161,-490.0,0.00016767,2]
[366384336,1750223468171,-951.97,0.00016767,2]
[366384337,1750223468180,-490.0,0.00016767,2]
[366384338,1750223468191,-817.54,0.00016767,2]
[366384339,1750223468200,-428.5346579,0.00016767,2]
[366384340,1750223468210,-490.0,0.00016767,2]
[366384341,1750223468220,-490.0,0.00016767,2]
[366384342,1750223468230,-506.71,0.00016767,2]
[366384343,1750223468240,-490.0,0.00016767,2]
[366384344,1750223468250,-490.0,0.00016767,2]
[366384345,1750223468260,-490.0,0.00016767,2]
[366384346,1750223468270,-217.8183836,0.00016767,2]
[366384347,1750223468280,-763.11,0.00016767,2]
[366384348,1750223468290,-490.0,0.00016767,2]
[366384349,1750223468300,-490.0,0.00016767,2]
[366384350,1750223468310,-490.0,0.00016767,2]
[366384351,1750223468320,-490.0,0.00016767,2]
[366384352,1750223468330,-610.87,0.00016767,2]
[366384353,1750223468340,-1069.14,0.00016767,2]
[366384354,1750223468350,-683.22,0.00016767,2]
[366384355,1750223468365,-537.5,0.00016767,2]
[366384356,1750223468375,-490.0,0.00016767,2]
[366384357,1750223468385,-546.71,0.00016767,2]
[366384358,1750223468395,-490.0,0.00016767,2]
[366384359,1750223468405,-670.49,0.00016767,2]
[366384360,1750223468417,-490.0,0.00016767,2]
[366384361,1750223468428,-722.26,0.00016767,2]
[366384362,1750223468438,-1478.25,0.00016767,2]
[366384363,1750223468449,-490.0,0.00016767,2]
[366384364,1750223468459,-490.0,0.00016767,2]
[366384365,1750223468469,-490.0,0.00016767,2]
[366384366,1750223468479,-490.0,0.00016767,2]
[366384367,1750223468491,-555.59,0.00016767,2]
[366384368,1750223468503,-490.0,0.00016767,2]
[366384369,1750223468514,-490.0,0.00016767,2]
[366384370,1750223468524,-828.16,0.00016767,2]
[366384371,1750223468535,-490.0,0.00016767,2]
[366384372,1750223468545,-509.26,0.00016767,2]
[366384373,1750223468555,-1688.18,0.00016767,2]
[366384374,1750223468565,-490.0,0.00016767,2]
[366384375,1750223468576,-733.62,0.00016767,2]
[366384376,1750223468586,-490.0,0.00016767,2]
[366384377,1750223468596,-490.0,0.00016767,2]
[366384378,1750223468606,-240.73833421,0.00016767,2]
[366384379,1750223468616,-490.0,0.00016767,2]
[366384380,1750223468626,-1121.62,0.00016767,2]
[366384381,1750223468637,-799.53,0.00016767,2]
[366384382,1750223468646,-490.0,0.00016767,2]
[366384383,1750223468656,-2558.58,0.00016767,2]
[366384384,1750223468666,-490.0,0.00016767,2]
[366384385,1750223468675,-490.0,0.00016767,2]
[366384386,1750223468685,-731.11,0.00016767,2]
[366384387,1750223468695,-490.0,0.00016767,2]
[366384388,1750223468707,-1781.2,0.00016767,2]
[366384389,1750223468717,-490.0,0.00016767,2]
[366384390,1750223468727,-490.0,0.00016767,2]
[366384391,1750223468737,-490.0,0.00016767,2]
[366384392,1750223468747,-490.0,0.00016767,2]
[366384393,1750223468965,-755.76,0.00016767,2]
[366384394,1750223468975,-490.0,0.00016767,2]
[366384395,1750223468985,-490.0,0.00016767,2]
[366384396,1750223468995,-490.0,0.00016767,2]
[366384397,1750223469009,-490.0,0.00016767,2]
[366384398,1750223469019,-154.966258,0.00016767,2]
[366384399,1750223469030,-490.0,0.00016767,2]
[366384400,1750223469040,-951.18,0.00016767,2]
[366384401,1750223469049,-490.0,0.00016767,2]
[366384402,1750223469060,-317.48841227,0.00016767,2]
[366384403,1750223469070,-490.0,0.00016767,2]
[366384404,1750223469080,-490.0,0.00016767,2]
[366384405,1750223469090,-490.0,0.00016767,2]
[366384406,1750223469100,-513.51,0.00016767,2]
[366384407,1750223469110,-841.9,0.00016767,2]
[366384408,1750223469119,-490.0,0.00016767,2]
[366384409,1750223469129,-729.74,0.00016767,2]
[366384410,1750223469139,-491.06,0.00016767,2]
[366384411,1750223469149,-1243.72,0.00016767,2]
[366384412,1750223469159,-490.0,0.00016767,2]
[366384413,1750223469168,-490.0,0.00016767,2]
[366384414,1750223469178,-490.0,0.00016767,2]
[366384415,1750223469188,-490.0,0.00016767,2]
[366384416,1750223469198,-490.0,0.00016767,2]
[366384417,1750223469208,-490.0,0.00016767,2]
[366384418,1750223469218,-1181.55,0.00016767,2]
[366384419,1750223469229,-594.65,0.00016767,2]
[366384420,1750223469239,-1466.49,0.00016767,2]
[366384421,1750223469249,-490.0,0.00016767,2]
[366384422,1750223469259,-616.05,0.00016767,2]
[366384423,1750223469269,-490.0,0.00016767,2]
[366384424,1750223469279,-1184.6,0.00016767,2]
[366384425,1750223469289,-490.0,0.00016767,2]
[366384426,1750223469299,-539.51,0.00016767,2]
[366384427,1750223469311,-490.0,0.00016767,2]
[366384428,1750223469321,-1512.23,0.00016767,2]
[366384429,1750223469331,-490.0,0.00016767,2]
[366384430,1750223469340,-490.0,0.00016767,2]
[366384431,1750223469350,-490.0,0.00016767,2]
[366384432,1750223469360,-490.0,0.00016767,2]
[366384433,1750223469370,-1551.17,0.00016767,2]
[366384434,1750223469379,-605.86,0.00016767,2]
[366384435,1750223469389,-439.96452953,0.00016767,2]
[366384436,1750223469399,-392.68544815,0.00016767,2]
[366384437,1750223469444,-97.31455185,0.00016767,2]
[366384438,1750223469454,-490.0,0.00016767,2]
[366384439,1750223469463,-490.0,0.00016767,2]
[366384440,1750223469473,-490.0,0.00016767,2]
[366384441,1750223469483,-490.0,0.00016767,2]
[366384442,1750223469492,-1257.52,0.00016767,2]
[366384443,1750223469502,-490.0,0.00016767,2]
[366384444,1750223469511,-580.6,0.00016767,2]
[366384445,1750223469520,-490.0,0.00016767,2]
[366384446,1750223469530,-490.0,0.00016767,2]
[366384447,1750223469539,-623.06,0.00016767,2]
[366384448,1750223469549,-2055.56,0.00016767,2]
[366384449,1750223469559,-490.0,0.00016767,2]
[366384450,1750223469569,-490.0,0.00016767,2]
[366384451,1750223469578,-490.0,0.00016767,2]
[366384452,1750223469588,-195.099981,0.00016767,2]
[366384454,1750223469598,-195.099981,0.00016767,2]
[366384455,1750223469607,-195.099981,0.00016767,2]
[366384456,1750223469616,-166.23,0.00016767,2]
[366384457,1750223469626,-1457.73,0.00016767,2]
[366384459,1750223469635,-524.47,0.00016767,2]
[366384460,1750223469645,-942.6,0.00016767,2]
[366384461,1750223469655,-175.54591479,0.00016767,2]
[366384462,1750223469743,-180.915972,0.00016602,2]
[366384463,1750223469754,-952.51681996,0.00016767,2]
[366384464,1750223469766,-240.02726525,0.00016767,2]
[366384465,1750223469775,-313.47252347,0.00016767,2]
[366384466,1750223469786,-634.0,0.00016767,2]
[366384467,1750223469796,-490.0,0.00016767,2]
[366384468,1750223469806,-490.0,0.00016767,2]
[366384469,1750223469817,-195.099981,0.00016767,2]
[366384470,1750223469828,-195.099981,0.00016767,2]
[366384471,1750223469838,-195.099981,0.00016767,2]
[366384472,1750223469847,-522.45,0.00016767,2]
[366384473,1750223469857,-490.0,0.00016767,2]
[366384474,1750223469867,-490.0,0.00016767,2]
[366384475,1750223469876,-490.0,0.00016767,2]
[366384476,1750223469886,-490.0,0.00016767,2]
[366384477,1750223469896,-490.0,0.00016767,2]
[366384478,1750223469905,-860.86,0.00016767,2]
[366384479,1750223469915,-1094.97,0.00016767,2]
[366384480,1750223469924,-705.08,0.00016767,2]
[366384481,1750223469934,-490.0,0.00016767,2]
[366384482,1750223469944,-490.0,0.00016767,2]
[366384483,1750223469953,-490.0,0.00016767,2]
[366384484,1750223469963,-583.3,0.00016767,2]
[366384485,1750223469973,-295.04101616,0.00016767,2]
[366384486,1750223469982,-490.0,0.00016767,2]
[366384487,1750223469992,-490.0,0.00016767,2]
[366384488,1750223470002,-490.0,0.00016767,2]
[366384489,1750223470011,-2270.29,0.00016767,2]
[366384490,1750223470021,-490.0,0.00016767,2]
[366384491,1750223470030,-490.0,0.00016767,2]
[366384492,1750223470040,-355.96506,0.00016767,2]
[366384493,1750223470050,-490.0,0.00016767,2]
[366384494,1750223470059,-355.96506,0.00016767,2]
[366384495,1750223470069,-355.96506,0.00016767,2]
[366384496,1750223470079,-355.96506,0.00016767,2]
[366384497,1750223470089,-495.87,0.00016767,2]
[366384498,1750223470099,-490.0,0.00016767,2]
[366384499,1750223470108,-490.0,0.00016767,2]
[366384500,1750223470118,-490.0,0.00016767,2]
[366384501,1750223470127,-1458.27,0.00016767,2]
[366384502,1750223470137,-490.0,0.00016767,2]
[366384503,1750223470147,-494.37,0.00016767,2]
[366384504,1750223470158,-952.14,0.00016767,2]
[366384505,1750223470167,-1407.06,0.00016767,2]
[366384506,1750223470177,-490.0,0.00016767,2]
[366384507,1750223470187,-2245.21,0.00016767,2]
[366384508,1750223470196,-492.5869082,0.00016767,2]
[366384509,1750223470206,-490.0,0.00016767,2]
[366384510,1750223470215,-578.84,0.00016767,2]
[366384511,1750223470225,-726.63,0.00016767,2]
[366384512,1750223470235,-1104.54,0.00016767,2]
[366384513,1750223470245,-823.46,0.00016767,2]
[366384514,1750223470255,-1553.24,0.00016767,2]
[366384515,1750223470265,-490.0,0.00016767,2]
[366384516,1750223470274,-689.74,0.00016767,2]
[366384517,1750223470285,-490.0,0.00016767,2]
[366384518,1750223470294,-1598.85,0.00016767,2]
[366384519,1750223470303,-1033.29,0.00016767,2]
[366384520,1750223470313,-494.99,0.00016767,2]
[366384521,1750223470323,-612.0,0.00016767,2]
[366384522,1750223470332,-490.0,0.00016767,2]
[366384523,1750223470342,-1072.35,0.00016767,2]
[366384524,1750223470351,-168.94813496,0.00016767,2]
[366384525,1750223470361,-1000.0,0.00016767,2]
[366384526,1750223470370,-353.83600757,0.00016767,2]
[366384527,1750223470380,-490.0,0.00016767,2]
[366384528,1750223470390,-592.08,0.00016767,2]
[366384529,1750223470400,-490.0,0.00016767,2]
[366384530,1750223470409,-490.0,0.00016767,2]
[366384531,1750223470419,-490.0,0.00016767,2]
[366384532,1750223470428,-1950.4,0.00016767,2]
[366384533,1750223470438,-1024.37,0.00016767,2]
[366384534,1750223470448,-493.27,0.00016767,2]
[366384535,1750223470458,-932.25,0.00016767,2]
[366384536,1750223470467,-1020.99,0.00016767,2]
[366384537,1750223470477,-496.8026235,0.00016767,2]
[366384538,1750223470486,-1214.56,0.00016767,2]
[366384539,1750223470496,-490.0,0.00016767,2]
[366384540,1750223470506,-612.78,0.00016767,2]
[366384541,1750223470516,-490.0,0.00016767,2]
[366384542,1750223470525,-884.34,0.00016767,2]
[366384543,1750223470535,-490.0,0.00016767,2]
[366384544,1750223470544,-490.0,0.00016767,2]
[366384545,1750223470554,-1207.76,0.00016767,2]
[366384546,1750223470563,-517.0,0.00016767,2]
[366384548,1750223470573,-770.2,0.00016767,2]
[366384549,1750223470583,-490.0,0.00016767,2]
[366384550,1750223470592,-584.98,0.00016767,2]
[366384551,1750223470602,-490.0,0.00016767,2]
[366384552,1750223470612,-3884.6,0.00016767,2]
[366384553,1750223470622,-554.58,0.00016767,2]
[366384554,1750223470632,-1522.68,0.00016767,2]
[366384555,1750223470642,-490.0,0.00016767,2]
[366384556,1750223470651,-828.1,0.00016767,2]
[366384557,1750223470661,-882.28,0.00016767,2]
[366384558,1750223470670,-2449.13,0.00016767,2]
[366384559,1750223470680,-490.0,0.00016767,2]
[366384560,1750223470689,-2030.78,0.00016767,2]
[366384561,1750223470698,-497.84126987,0.00016767,2]
[366384562,1750223470712,-490.0,0.00016767,2]
[366384563,1750223470721,-1127.02,0.00016767,2]
[366384564,1750223470730,-1710.07,0.00016767,2]
[366384565,1750223470739,-490.0,0.00016767,2]
[366384566,1750223470749,-2067.75,0.00016767,2]
[366384567,1750223470759,-490.0,0.00016767,2]
[366384568,1750223470768,-490.0,0.00016767,2]
[366384569,1750223470778,-6190.46,0.00016767,2]
[366384570,1750223470788,-592.48,0.00016767,2]
[366384571,1750223470798,-4967.03,0.00016767,2]
[366384572,1750223470807,-151.0,0.00016767,2]
[366384573,1750223470817,-187.46425132,0.00016767,2]
[366384574,1750223470827,-2192.21,0.00016767,2]
[366384575,1750223470837,-490.0,0.00016767,2]
[366384576,1750223470846,-4265.58,0.00016767,2]
[366384577,1750223470855,-1461.47,0.00016767,2]
[366384578,1750223470865,-490.0,0.00016767,2]
[366384579,1750223470874,-490.0,0.00016767,2]
[366384580,1750223470884,-703.27,0.00016767,2]
[366384581,1750223470893,-502.71,0.00016767,2]
[366384582,1750223470903,-490.0,0.00016767,2]
[366384583,1750223470912,-490.0,0.00016767,2]
[366384584,1750223470921,-302.031881,0.00016767,2]
[366384585,1750223470931,-490.0,0.00016767,2]
[366384586,1750223470940,-302.031881,0.00016767,2]
[366384587,1750223470950,-302.031881,0.00016767,2]
[366384588,1750223470959,-2022.27,0.00016767,2]
[366384589,1750223470969,-5142.26,0.00016767,2]
[366384590,1750223470979,-302.031881,0.00016767,2]
[366384591,1750223470988,-302.031881,0.00016767,2]
[366384592,1750223470998,-1746.82,0.00016767,2]
[366384593,1750223471008,-302.031881,0.00016767,2]
[366384594,1750223471017,-490.0,0.00016767,2]
[366384595,1750223471027,-1383.32,0.00016767,2]
[366384596,1750223471036,-151.0,0.00016767,2]
[366384597,1750223471046,-151.0,0.00016767,2]
[366384598,1750223471055,-151.0,0.00016767,2]
[366384599,1750223471064,-713.01,0.00016767,2]
[366384600,1750223471074,-151.0,0.00016767,2]
[366384601,1750223471083,-151.0,0.00016767,2]
[366384602,1750223471093,-490.0,0.00016767,2]
[366384603,1750223471103,-300.24279,0.00016767,2]
[366384604,1750223471112,-2009.93,0.00016767,2]
[366384605,1750223471122,-1433.4,0.00016767,2]
[366384606,1750223471131,-490.0,0.00016767,2]
[366384607,1750223471141,-789.56,0.00016767,2]
[366384608,1750223471151,-941.98,0.00016767,2]
[366384609,1750223471160,-490.0,0.00016767,2]
[366384610,1750223471170,-580.84,0.00016767,2]
[366384611,1750223471180,-9081.08,0.00016767,2]
[366384612,1750223471189,-300.904166,0.00016767,2]
[366384613,1750223471198,-1122.06,0.00016767,2]
[366384614,1750223471208,-490.0,0.00016767,2]
[366384615,1750223471218,-490.0,0.00016767,2]
[366384616,1750223471228,-1129.75,0.00016767,2]
[366384617,1750223471238,-2999.4,0.00016767,2]
[366384618,1750223471248,-490.0,0.00016767,2]
[366384619,1750223471258,-490.0,0.00016767,2]
[366384620,1750223471267,-4829.86,0.00016767,2]
[366384621,1750223471278,-1153.67,0.00016767,2]
[366384622,1750223471287,-4062.38947071,0.00016767,2]
[366384623,1750223471304,-634.40000001,0.00016767,2]
[366384629,1750223630453,1954.0,0.0002465,120]
[366384630,1750223631260,432.0,0.0002465,120]
[366384631,1750223632930,1457.0,0.0002465,120]
[366384633,1750223693588,174.0,0.0002465,120]
[366384634,1750223747113,344.0,0.0002465,120]
[366384635,1750223810131,165.0,0.0002465,120]
[366384639,1750223866509,700.0,0.0002465,120]
[366384669,1750224478154,170.41,0.00011747,2]
[366384685,1750224622286,162.93263,0.00018001,29]
[366384689,1750224631773,-208.18,0.00013699,2]
[366384690,1750224631784,-167.68482798,0.00014084,2]
[366384691,1750224631793,-151.0,0.00014115,2]
[366384692,1750224631802,-203.0,0.00014322,2]
[366384693,1750224631812,-2751.0,0.00014628,2]
[366384694,1750224631821,-666.0,0.00014679,2]
[366384695,1750224631831,-198.01019158,0.0001468,2]
[366384696,1750224631840,-169.08,0.00014698,2]
[366384697,1750224631850,-776.9,0.00014722,2]
[366384698,1750224631859,-500.0,0.00014754,2]
[366384699,1750224631868,-193.26,0.00014761,2]
[366384700,1750224631878,-200.0,0.00014763,7]
[366384701,1750224631887,-250.0,0.00014777,2]
[366384702,1750224631897,-1200.0,0.00014779,2]
[366384703,1750224631906,-200.0,0.0001478,2]
[366384704,1750224631916,-2867.27,0.0001478,2]
[366384705,1750224631925,-300.0,0.00014781,2]
[366384706,1750224631935,-4539.0,0.00014782,2]
[366384707,1750224631945,-300.0,0.00014794,2]
[366384708,1750224631954,-2030.55,0.00014795,2]
[366384709,1750224631964,-230.45,0.00014821,2]
[366384710,1750224631974,-23900.0,0.00014844,2]
[366384711,1750224631983,-2520.59,0.00014871,2]
[366384712,1750224631993,-736.247664,0.000149,2]
[366384713,1750224632002,-736.24766392,0.00015107,2]
[366384714,1750224632012,-737.01149717,0.00015218,2]
[366384715,1750224632022,-737.01149716,0.00015218,2]
[366384716,1750224632031,-219.79466099,0.000153,2]
[366384717,1750224632043,-736.24766392,0.00015314,2]
[366384718,1750224632052,-150.0,0.00015329,2]
[366384719,1750224632062,-150.0,0.00015359,2]
[366384720,1750224632072,-177.0,0.00015365,2]
[366384721,1750224632083,-170.96,0.00015371,2]
[366384722,1750224632092,-177.0,0.0001543,2]
[366384723,1750224632103,-198.01019158,0.00015479,2]
[366384724,1750224632113,-736.24766392,0.00015521,2]
[366384725,1750224632123,-420.84,0.00015542,2]
[366384726,1750224632133,-420.84,0.00015546,2]
[366384727,1750224632142,-169.26574405,0.0001555,2]
[366384774,1750224637598,-251.57425595,0.0001555,2]
[366384775,1750224637609,-420.84,0.00015554,2]
[366384776,1750224637618,-420.84,0.00015558,2]
[366384777,1750224637628,-420.84,0.00015562,2]
[366384778,1750224637638,-420.84,0.00015567,2]
[366384779,1750224637648,-420.84,0.00015571,2]
[366384780,1750224637658,-420.84,0.00015575,2]
[366384781,1750224637668,-58.30819283,0.00015578,2]
[366384782,1750224637679,-1006.6886836,0.00015578,2]
[366384822,1750224639776,-151.0,0.00014107,2]
[366384823,1750224639785,-789.0,0.00015578,2]
[366384824,1750224640108,-528.73987333,0.00015578,2]
[366384825,1750224640122,-1724.2500075,0.00015578,2]
[366384826,1750224640171,-536.93028487,0.00015578,2]
[366384827,1750224640231,-1280.0,0.00015578,2]
[366384832,1750224645420,-3775.21497156,0.00015578,2]
[366384842,1750224645847,-7170.28667583,0.00015578,2]
[366384843,1750224645857,-420.84,0.00015579,2]
[366384844,1750224645867,-420.84,0.00015583,2]
[366384845,1750224645877,-420.84,0.00015587,2]
[366384846,1750224645888,-444.4,0.00015588,2]
[366384847,1750224645898,-420.84,0.00015591,2]
[366384848,1750224645908,-420.84,0.00015595,2]
[366384849,1750224645918,-420.84,0.00015599,2]
[366384850,1750224645928,-300.0,0.00015602,2]
[366384851,1750224645937,-420.84,0.00015603,2]
[366384852,1750224645947,-420.84,0.00015607,2]
[366384853,1750224645956,-420.84,0.00015611,2]
[366384854,1750224645966,-420.84,0.00015616,2]
[366384855,1750224645976,-420.84,0.0001562,2]
[366384856,1750224645985,-403.65,0.00015649,2]
[366384857,1750224645995,-1000.0,0.00015669,2]
[366384858,1750224646004,-736.24766392,0.00015728,2]
[366384859,1750224646013,-177.0,0.00015781,2]
[366384860,1750224646023,-1037.6,0.00015793,2]
[366384861,1750224646032,-183.0,0.00015799,2]
[366384862,1750224646042,-183.0,0.00015843,2]